[Event "Early-Titled-Tuesday-Blitz-May-28-2024"]
[Site "Chess.com"]
[Date "2024.05.28"]
[Round "5"]
[White "eltenedor"]
[Black "Dubs123"]
[Result "0-1"]
[WhiteElo "2173"]
[BlackElo "2452"]
[TimeControl "180+1"]
[EndTime "8:56:19 PDT"]
[Termination "Dubs123 won by checkmate"]

1. f4 {[%clk 0:03:00.9]} 1... Nf6 {[%clk 0:02:52.1]} 2. Nf3 {[%clk 0:02:53]}
2... d5 {[%clk 0:02:24.7]} 3. b3 {[%clk 0:02:51.2]} 3... c5 {[%clk 0:02:23.4]}
4. Bb2 {[%clk 0:02:48.6]} 4... Nc6 {[%clk 0:02:23.4]} 5. e3 {[%clk 0:02:48.8]}
5... g6 {[%clk 0:02:21.4]} 6. Bb5 {[%clk 0:02:43.4]} 6... Bg7 {[%clk 0:02:21.1]}
7. Bxc6+ {[%clk 0:02:27.3]} 7... bxc6 {[%clk 0:02:20.6]} 8. Ne5 {[%clk
0:02:27.9]} 8... Qc7 {[%clk 0:02:18.8]} 9. Nd3 {[%clk 0:02:18.3]} 9... Qb6
{[%clk 0:01:57.5]} 10. O-O {[%clk 0:02:10]} 10... O-O {[%clk 0:01:53.7]} 11. Nc3
{[%clk 0:02:05.4]} 11... c4 {[%clk 0:01:52.9]} 12. Na4 {[%clk 0:01:53.5]} 12...
Qb5 {[%clk 0:01:45.8]} 13. Ndc5 {[%clk 0:01:39.9]} 13... Nd7 {[%clk 0:01:31.9]}
14. Bxg7 {[%clk 0:01:24.3]} 14... Kxg7 {[%clk 0:01:31]} 15. bxc4 {[%clk
0:01:18.3]} 15... Qxc4 {[%clk 0:01:26.7]} 16. d3 {[%clk 0:01:10.5]} 16... Qb5
{[%clk 0:01:26.5]} 17. Rb1 {[%clk 0:01:02.5]} 17... Qa5 {[%clk 0:01:26.1]} 18.
Qe1 {[%clk 0:00:56.6]} 18... Qc7 {[%clk 0:01:18.6]} 19. Qc3+ {[%clk 0:00:54.8]}
19... Kg8 {[%clk 0:01:16.5]} 20. e4 {[%clk 0:00:46.4]} 20... Nb6 {[%clk
0:01:13.8]} 21. f5 {[%clk 0:00:40.2]} 21... Rd8 {[%clk 0:01:04.2]} 22. f6 {[%clk
0:00:28]} 22... e5 {[%clk 0:01:02.7]} 23. Qd2 {[%clk 0:00:24.6]} 23... Qd6
{[%clk 0:00:58.8]} 24. Rf3 {[%clk 0:00:19.8]} 24... Nxa4 {[%clk 0:00:56.9]} 25.
Nxa4 {[%clk 0:00:14.5]} 25... dxe4 {[%clk 0:00:54.8]} 26. Qh6 {[%clk 0:00:13.9]}
26... Qf8 {[%clk 0:00:54.5]} 27. Qxf8+ {[%clk 0:00:14.3]} 27... Kxf8 {[%clk
0:00:53.7]} 28. dxe4 {[%clk 0:00:14.4]} 28... Be6 {[%clk 0:00:52.1]} 29. a3
{[%clk 0:00:09.6]} 29... Bc4 {[%clk 0:00:40.6]} 30. Nc5 {[%clk 0:00:08.4]} 30...
Rd2 {[%clk 0:00:35.7]} 31. Rc3 {[%clk 0:00:07.5]} 31... Be2 {[%clk 0:00:30.7]}
32. Rb7 {[%clk 0:00:05.8]} 32... Rad8 {[%clk 0:00:28.9]} 33. Rcb3 {[%clk
0:00:03.3]} 33... Bc4 {[%clk 0:00:27.7]} 34. R3b4 {[%clk 0:00:03.2]} 34... Bb5
{[%clk 0:00:20.9]} 35. Rc7 {[%clk 0:00:03.2]} 35... Rd1+ {[%clk 0:00:20.3]} 36.
Kf2 {[%clk 0:00:03.2]} 36... R1d2+ {[%clk 0:00:20.5]} 37. Ke3 {[%clk 0:00:03.4]}
37... Rxc2 {[%clk 0:00:21.2]} 38. Nb3 {[%clk 0:00:02.4]} 38... Rd3# {[%clk
0:00:18.2]} 0-1

[Event "Early-Titled-Tuesday-Blitz-May-28-2024"]
[Site "Chess.com"]
[Date "2024.05.28"]
[Round "5"]
[White "Aygehovit1992"]
[Black "sergeikim"]
[Result "1-0"]
[WhiteElo "2824"]
[BlackElo "2620"]
[TimeControl "180+1"]
[EndTime "8:56:20 PDT"]
[Termination "Aygehovit1992 won by resignation"]

1. e4 {[%clk 0:02:57]} 1... e5 {[%clk 0:03:00]} 2. Nf3 {[%clk 0:02:56.9]} 2...
Nc6 {[%clk 0:03:00]} 3. Bb5 {[%clk 0:02:57.5]} 3... a6 {[%clk 0:03:00.3]} 4. Ba4
{[%clk 0:02:58.2]} 4... Nf6 {[%clk 0:03:00.2]} 5. O-O {[%clk 0:02:58.7]} 5... b5
{[%clk 0:02:59.8]} 6. Bb3 {[%clk 0:02:58.6]} 6... Bc5 {[%clk 0:02:59.9]} 7. c3
{[%clk 0:02:58.1]} 7... d6 {[%clk 0:03:00.3]} 8. d4 {[%clk 0:02:58.4]} 8... Bb6
{[%clk 0:03:00.5]} 9. Be3 {[%clk 0:02:58.6]} 9... O-O {[%clk 0:02:56.6]} 10.
Nbd2 {[%clk 0:02:57.1]} 10... Bb7 {[%clk 0:02:54.5]} 11. h3 {[%clk 0:02:54.1]}
11... h6 {[%clk 0:02:53.3]} 12. Re1 {[%clk 0:02:43.6]} 12... Re8 {[%clk
0:02:52.8]} 13. d5 {[%clk 0:02:40.5]} 13... Ne7 {[%clk 0:02:51.8]} 14. Bxb6
{[%clk 0:02:40.3]} 14... cxb6 {[%clk 0:02:52.6]} 15. a4 {[%clk 0:02:40]} 15...
bxa4 {[%clk 0:02:50.5]} 16. Bxa4 {[%clk 0:02:38.2]} 16... b5 {[%clk 0:02:50.8]}
17. Bc2 {[%clk 0:02:35.1]} 17... Ng6 {[%clk 0:02:50.7]} 18. Bd3 {[%clk
0:02:32.7]} 18... Nf4 {[%clk 0:02:30.4]} 19. Bf1 {[%clk 0:02:32.3]} 19... Qd7
{[%clk 0:02:22.8]} 20. Kh2 {[%clk 0:02:32]} 20... Nh7 {[%clk 0:02:16]} 21. g3
{[%clk 0:02:31.5]} 21... Ng6 {[%clk 0:02:15]} 22. Nb3 {[%clk 0:02:26.3]} 22...
f5 {[%clk 0:02:09.2]} 23. exf5 {[%clk 0:02:24.8]} 23... Qxf5 {[%clk 0:02:08.5]}
24. Na5 {[%clk 0:02:24.5]} 24... Bc8 {[%clk 0:02:07.5]} 25. b4 {[%clk
0:01:52.1]} 25... Rf8 {[%clk 0:02:00.6]} 26. Bg2 {[%clk 0:01:48.1]} 26... Bd7
{[%clk 0:01:51.1]} 27. Ra2 {[%clk 0:01:47]} 27... Rf7 {[%clk 0:01:28]} 28. Nc6
{[%clk 0:01:46.6]} 28... h5 {[%clk 0:01:13.7]} 29. Qb1 {[%clk 0:01:30.5]} 29...
h4 {[%clk 0:00:56.7]} 30. Qxf5 {[%clk 0:01:29.7]} 30... Bxf5 {[%clk 0:00:56.4]}
31. c4 {[%clk 0:01:17.4]} 31... bxc4 {[%clk 0:00:49.2]} 32. b5 {[%clk
0:01:18.3]} 32... Bd3 {[%clk 0:00:38.3]} 33. bxa6 {[%clk 0:00:59.4]} 33... Nf6
{[%clk 0:00:26]} 34. Ng5 {[%clk 0:00:54.9]} 34... Rc7 {[%clk 0:00:25.4]} 35. Ne6
{[%clk 0:00:53.1]} 35... Rcc8 {[%clk 0:00:23.4]} 36. a7 {[%clk 0:00:52.5]} 36...
Kf7 {[%clk 0:00:22.4]} 37. Rb2 {[%clk 0:00:43.5]} 37... Ne7 {[%clk 0:00:20]} 38.
Rb7 {[%clk 0:00:43]} 38... Re8 {[%clk 0:00:20.6]} 39. Nc7 {[%clk 0:00:38.5]}
39... Nxc6 {[%clk 0:00:16]} 40. dxc6 {[%clk 0:00:24.5]} 40... Kg6 {[%clk
0:00:11.7]} 41. Nxe8 {[%clk 0:00:23.1]} 1-0

[Event "Early-Titled-Tuesday-Blitz-May-28-2024"]
[Site "Chess.com"]
[Date "2024.05.28"]
[Round "5"]
[White "guineo59"]
[Black "jk13"]
[Result "0-1"]
[WhiteElo "2346"]
[BlackElo "2656"]
[TimeControl "180+1"]
[EndTime "8:56:23 PDT"]
[Termination "jk13 won on time"]

1. d4 {[%clk 0:02:59]} 1... Nf6 {[%clk 0:02:59.1]} 2. Nf3 {[%clk 0:02:59]} 2...
e6 {[%clk 0:02:59.5]} 3. e3 {[%clk 0:02:59]} 3... d5 {[%clk 0:02:59.8]} 4. Bd3
{[%clk 0:02:58]} 4... Be7 {[%clk 0:02:59.8]} 5. Nbd2 {[%clk 0:02:57.7]} 5... O-O
{[%clk 0:03:00.4]} 6. O-O {[%clk 0:02:57.7]} 6... b6 {[%clk 0:03:01]} 7. e4
{[%clk 0:02:54]} 7... dxe4 {[%clk 0:02:59.1]} 8. Nxe4 {[%clk 0:02:53.9]} 8...
Bb7 {[%clk 0:02:59.8]} 9. Qe2 {[%clk 0:02:49.2]} 9... Nbd7 {[%clk 0:02:59.4]}
10. Rd1 {[%clk 0:02:45.3]} 10... c5 {[%clk 0:02:46.2]} 11. Nxf6+ {[%clk
0:02:30.8]} 11... Bxf6 {[%clk 0:02:42.6]} 12. dxc5 {[%clk 0:02:30.3]} 12... bxc5
{[%clk 0:02:37.1]} 13. Bf4 {[%clk 0:02:07.6]} 13... Qb6 {[%clk 0:01:56.8]} 14.
Bxh7+ {[%clk 0:02:01.5]} 14... Kxh7 {[%clk 0:01:57.7]} 15. Rxd7 {[%clk
0:02:01.2]} 15... Qxb2 {[%clk 0:01:54]} 16. Rad1 {[%clk 0:01:50.7]} 16... Bc6
{[%clk 0:01:42.2]} 17. Rc7 {[%clk 0:01:39.1]} 17... Bxf3 {[%clk 0:01:12.1]} 18.
Qxf3 {[%clk 0:01:23.6]} 18... Qxc2 {[%clk 0:01:12.2]} 19. h3 {[%clk 0:01:09.7]}
19... Rac8 {[%clk 0:00:52.3]} 20. Rxa7 {[%clk 0:01:04.3]} 20... c4 {[%clk
0:00:52.4]} 21. Rdd7 {[%clk 0:00:51]} 21... Qg6 {[%clk 0:00:41]} 22. Bd6 {[%clk
0:00:41.7]} 22... Rfd8 {[%clk 0:00:28.6]} 23. Rxd8 {[%clk 0:00:25.8]} 23... Rxd8
{[%clk 0:00:29.5]} 24. Bc7 {[%clk 0:00:26.4]} 24... Rd3 {[%clk 0:00:26.3]} 25.
Qc6 {[%clk 0:00:21.2]} 25... c3 {[%clk 0:00:23.5]} 26. Ra8 {[%clk 0:00:20.5]}
26... Qf5 {[%clk 0:00:19]} 27. Qe8 {[%clk 0:00:10]} 27... Be5 {[%clk 0:00:13.2]}
28. Qg8+ {[%clk 0:00:03.8]} 28... Kg6 {[%clk 0:00:13.1]} 29. Bxe5 {[%clk
0:00:02.2]} 29... Qxe5 {[%clk 0:00:11.8]} 30. g3 {[%clk 0:00:02]} 30... c2
{[%clk 0:00:11]} 31. Rc8 {[%clk 0:00:02]} 31... Rd1+ {[%clk 0:00:10.5]} 32. Kh2
{[%clk 0:00:01.6]} 32... Qd5 {[%clk 0:00:08.3]} 0-1

[Event "Early-Titled-Tuesday-Blitz-May-28-2024"]
[Site "Chess.com"]
[Date "2024.05.28"]
[Round "5"]
[White "jraosam"]
[Black "Massakru"]
[Result "0-1"]
[WhiteElo "2109"]
[BlackElo "2375"]
[TimeControl "180+1"]
[EndTime "8:56:23 PDT"]
[Termination "Massakru won by checkmate"]

1. e4 {[%clk 0:02:58]} 1... e5 {[%clk 0:02:59.3]} 2. Nf3 {[%clk 0:02:57.7]} 2...
Nc6 {[%clk 0:02:59.6]} 3. Bb5 {[%clk 0:02:58.1]} 3... a6 {[%clk 0:02:59.4]} 4.
Bxc6 {[%clk 0:02:58.2]} 4... dxc6 {[%clk 0:02:59.5]} 5. O-O {[%clk 0:02:58.8]}
5... f6 {[%clk 0:02:55.5]} 6. d4 {[%clk 0:02:58.8]} 6... exd4 {[%clk 0:02:55.7]}
7. Nxd4 {[%clk 0:02:59.1]} 7... c5 {[%clk 0:02:54.2]} 8. Nb3 {[%clk 0:02:58.3]}
8... Bd7 {[%clk 0:02:53.5]} 9. Be3 {[%clk 0:02:57.7]} 9... b6 {[%clk 0:02:52.9]}
10. Nc3 {[%clk 0:02:57]} 10... Ne7 {[%clk 0:02:49.8]} 11. Nd5 {[%clk 0:02:45.5]}
11... Nxd5 {[%clk 0:02:49.9]} 12. Qxd5 {[%clk 0:02:42]} 12... Bb5 {[%clk
0:02:50]} 13. Rfd1 {[%clk 0:02:32.2]} 13... Qxd5 {[%clk 0:02:49.9]} 14. exd5
{[%clk 0:02:25.3]} 14... O-O-O {[%clk 0:02:49.3]} 15. Rd2 {[%clk 0:02:18.9]}
15... Bc4 {[%clk 0:02:44.6]} 16. Rad1 {[%clk 0:02:17.7]} 16... Bd6 {[%clk
0:02:39.2]} 17. Nc1 {[%clk 0:02:15.6]} 17... Be5 {[%clk 0:02:38.2]} 18. b3
{[%clk 0:02:13.9]} 18... Bb5 {[%clk 0:02:30.1]} 19. c4 {[%clk 0:02:13.6]} 19...
Bd7 {[%clk 0:02:30.4]} 20. f4 {[%clk 0:02:12.9]} 20... Bd6 {[%clk 0:02:30.6]}
21. g3 {[%clk 0:02:08.5]} 21... Rde8 {[%clk 0:02:28.8]} 22. Re1 {[%clk
0:02:06.8]} 22... b5 {[%clk 0:02:28]} 23. Kf2 {[%clk 0:02:03]} 23... Re4 {[%clk
0:02:26.7]} 24. Ne2 {[%clk 0:01:32.1]} 24... bxc4 {[%clk 0:02:21.8]} 25. Nc3
{[%clk 0:01:31.1]} 25... Re7 {[%clk 0:02:12.3]} 26. bxc4 {[%clk 0:01:30]} 26...
Rhe8 {[%clk 0:02:12.2]} 27. Rde2 {[%clk 0:01:22.2]} 27... Bg4 {[%clk 0:02:11.3]}
28. Rb2 {[%clk 0:01:21.6]} 28... Bf5 {[%clk 0:02:07.7]} 29. Rd2 {[%clk
0:01:17.6]} 29... g5 {[%clk 0:02:02.4]} 30. Kf3 {[%clk 0:00:58.3]} 30... gxf4
{[%clk 0:01:57.6]} 31. gxf4 {[%clk 0:00:56.2]} 31... h5 {[%clk 0:01:49.9]} 32.
Nd1 {[%clk 0:00:24.9]} 32... Bg4+ {[%clk 0:01:49.4]} 33. Kf2 {[%clk 0:00:25]}
33... Bxf4 {[%clk 0:01:39.8]} 34. Bxf4 {[%clk 0:00:22.5]} 34... Rxe1 {[%clk
0:01:39.3]} 35. Ne3 {[%clk 0:00:20.5]} 35... Rc1 {[%clk 0:01:34.1]} 36. d6
{[%clk 0:00:20.3]} 36... cxd6 {[%clk 0:01:30.5]} 37. Rxd6 {[%clk 0:00:21.2]}
37... Ra1 {[%clk 0:01:27.2]} 38. Rxa6 {[%clk 0:00:20.7]} 38... Re4 {[%clk
0:01:25.1]} 39. Nd5 {[%clk 0:00:19]} 39... Rd1 {[%clk 0:01:05.4]} 40. Ra8+
{[%clk 0:00:18.9]} 40... Kb7 {[%clk 0:01:02.6]} 41. Rb8+ {[%clk 0:00:19.2]}
41... Ka7 {[%clk 0:01:01.2]} 42. Bc7 {[%clk 0:00:16.7]} 42... Re2+ {[%clk
0:00:47.4]} 43. Kg3 {[%clk 0:00:16.3]} 43... Rd3+ {[%clk 0:00:48]} 44. Kf4
{[%clk 0:00:14]} 44... Rf2+ {[%clk 0:00:36]} 45. Ke4 {[%clk 0:00:12.4]} 45...
Bf5# {[%clk 0:00:34.6]} 0-1

[Event "Early-Titled-Tuesday-Blitz-May-28-2024"]
[Site "Chess.com"]
[Date "2024.05.28"]
[Round "5"]
[White "Ginger_GM"]
[Black "Caracal3000"]
[Result "1-0"]
[WhiteElo "2745"]
[BlackElo "2564"]
[TimeControl "180+1"]
[EndTime "8:56:24 PDT"]
[Termination "Ginger_GM won by checkmate"]

1. f4 {[%clk 0:02:58.2]} 1... f5 {[%clk 0:02:57]} 2. e4 {[%clk 0:02:57.8]} 2...
e6 {[%clk 0:02:52.2]} 3. Nc3 {[%clk 0:02:53.1]} 3... fxe4 {[%clk 0:02:44.6]} 4.
d3 {[%clk 0:02:51.9]} 4... exd3 {[%clk 0:02:42.1]} 5. Bxd3 {[%clk 0:02:51.6]}
5... Nf6 {[%clk 0:02:38.4]} 6. g4 {[%clk 0:02:43.5]} 6... Nd5 {[%clk 0:02:31.3]}
7. g5 {[%clk 0:02:39.1]} 7... g6 {[%clk 0:02:18.7]} 8. Nxd5 {[%clk 0:02:34.1]}
8... exd5 {[%clk 0:02:19]} 9. Nf3 {[%clk 0:02:27]} 9... Bc5 {[%clk 0:01:57.7]}
10. Kf1 {[%clk 0:02:03.7]} 10... d6 {[%clk 0:01:54.6]} 11. Kg2 {[%clk
0:02:03.4]} 11... O-O {[%clk 0:01:53.9]} 12. b4 {[%clk 0:01:54.5]} 12... Bb6
{[%clk 0:01:43.6]} 13. h4 {[%clk 0:01:44.1]} 13... Qd7 {[%clk 0:01:36.4]} 14. f5
{[%clk 0:01:28.3]} 14... gxf5 {[%clk 0:01:30]} 15. Bf4 {[%clk 0:01:23.3]} 15...
Nc6 {[%clk 0:01:25.2]} 16. h5 {[%clk 0:01:22.4]} 16... Ne5 {[%clk 0:01:17.2]}
17. g6 {[%clk 0:01:12.1]} 17... Qg7 {[%clk 0:01:01.7]} 18. Qd2 {[%clk
0:00:56.9]} 18... Ng4 {[%clk 0:00:49.3]} 19. gxh7+ {[%clk 0:00:28]} 19... Kh8
{[%clk 0:00:28.9]} 20. Ng5 {[%clk 0:00:26.8]} 20... Bd4 {[%clk 0:00:23.9]} 21.
Raf1 {[%clk 0:00:20.3]} 21... Bf6 {[%clk 0:00:21.3]} 22. h6 {[%clk 0:00:20.5]}
22... Qg6 {[%clk 0:00:21.2]} 23. Rh4 {[%clk 0:00:18.2]} 23... Nxh6 {[%clk
0:00:17.6]} 24. Rfh1 {[%clk 0:00:17]} 24... Nf7 {[%clk 0:00:17.3]} 25. Rh5
{[%clk 0:00:14.6]} 25... Bd7 {[%clk 0:00:11.2]} 26. Kf1 {[%clk 0:00:13.9]} 26...
Nxg5 {[%clk 0:00:11.6]} 27. Bxg5 {[%clk 0:00:14.1]} 27... Bxg5 {[%clk
0:00:07.7]} 28. Rxg5 {[%clk 0:00:14.5]} 28... Qf6 {[%clk 0:00:05.7]} 29. Rh6
{[%clk 0:00:14.4]} 29... Qxh6 {[%clk 0:00:02]} 30. Rg8+ {[%clk 0:00:14.4]} 30...
Kxh7 {[%clk 0:00:02.7]} 31. Rg5 {[%clk 0:00:07.6]} 31... Rg8 {[%clk 0:00:02.2]}
32. Rxf5 {[%clk 0:00:04]} 32... Qxd2 {[%clk 0:00:02]} 33. Rf7+ {[%clk
0:00:04.6]} 33... Kh8 {[%clk 0:00:02.2]} 34. Rh7# {[%clk 0:00:04.4]} 1-0

[Event "Early-Titled-Tuesday-Blitz-May-28-2024"]
[Site "Chess.com"]
[Date "2024.05.28"]
[Round "5"]
[White "alreadybroken23"]
[Black "ClauAmura"]
[Result "1-0"]
[WhiteElo "2612"]
[BlackElo "2412"]
[TimeControl "180+1"]
[EndTime "8:56:24 PDT"]
[Termination "alreadybroken23 won by resignation"]

1. d4 {[%clk 0:02:56.1]} 1... Nf6 {[%clk 0:02:49.5]} 2. c4 {[%clk 0:02:54.4]}
2... e6 {[%clk 0:02:48.8]} 3. g4 {[%clk 0:02:54.3]} 3... Nxg4 {[%clk 0:02:46.1]}
4. e4 {[%clk 0:02:52.2]} 4... f5 {[%clk 0:02:42.5]} 5. exf5 {[%clk 0:02:42.7]}
5... Bb4+ {[%clk 0:02:41.6]} 6. Nc3 {[%clk 0:02:32.9]} 6... exf5 {[%clk
0:02:41.3]} 7. h3 {[%clk 0:02:29.9]} 7... Qe7+ {[%clk 0:02:37]} 8. Be2 {[%clk
0:02:27.2]} 8... Nf6 {[%clk 0:02:35.4]} 9. Nf3 {[%clk 0:02:26.9]} 9... b6 {[%clk
0:02:26.8]} 10. Kf1 {[%clk 0:02:20.3]} 10... Bb7 {[%clk 0:02:24.9]} 11. Rg1
{[%clk 0:02:20.1]} 11... Bxc3 {[%clk 0:02:15.4]} 12. bxc3 {[%clk 0:02:19.7]}
12... d6 {[%clk 0:02:14.3]} 13. Bg5 {[%clk 0:02:14.8]} 13... Nbd7 {[%clk
0:02:14.4]} 14. Qc2 {[%clk 0:02:11.7]} 14... h6 {[%clk 0:02:01.1]} 15. Be3
{[%clk 0:02:04.7]} 15... Qe4 {[%clk 0:01:58.6]} 16. Qxe4+ {[%clk 0:01:55.7]}
16... Nxe4 {[%clk 0:01:55.8]} 17. Rxg7 {[%clk 0:01:53.7]} 17... Nxc3 {[%clk
0:01:48.4]} 18. Nh4 {[%clk 0:01:46.9]} 18... Nxe2 {[%clk 0:01:47.3]} 19. Ng6
{[%clk 0:01:31.6]} 19... Nc3 {[%clk 0:01:15]} 20. Nxh8 {[%clk 0:01:19.5]} 20...
O-O-O {[%clk 0:01:15.3]} 21. Ng6 {[%clk 0:01:17.9]} 21... Nf6 {[%clk 0:01:12.5]}
22. Ne7+ {[%clk 0:01:15.9]} 22... Kb8 {[%clk 0:01:11.9]} 23. Nxf5 {[%clk
0:01:16.1]} 23... Ba6 {[%clk 0:01:10.2]} 24. Ke1 {[%clk 0:01:11.6]} 24... Bxc4
{[%clk 0:00:56.9]} 25. Rc1 {[%clk 0:01:11]} 25... Be6 {[%clk 0:00:55.9]} 26.
Rxc3 {[%clk 0:00:58.1]} 26... Nd5 {[%clk 0:00:55.9]} 27. Ne7 {[%clk 0:00:46.4]}
27... Nxc3 {[%clk 0:00:52.2]} 28. Nc6+ {[%clk 0:00:45.9]} 28... Kc8 {[%clk
0:00:52.9]} 29. Nxd8 {[%clk 0:00:45.6]} 29... Kxd8 {[%clk 0:00:53.1]} 30. Bxh6
{[%clk 0:00:46.5]} 30... Bxh3 {[%clk 0:00:49.1]} 31. Bd2 {[%clk 0:00:39.9]}
31... Nxa2 {[%clk 0:00:44.6]} 32. f4 {[%clk 0:00:40]} 32... a5 {[%clk
0:00:42.6]} 33. Rf7 {[%clk 0:00:36.8]} 33... Be6 {[%clk 0:00:38.6]} 34. Rf6
{[%clk 0:00:35]} 34... Ke7 {[%clk 0:00:38.6]} 35. Rh6 {[%clk 0:00:32.9]} 35...
a4 {[%clk 0:00:38]} 36. Rh7+ {[%clk 0:00:33.1]} 36... Kd8 {[%clk 0:00:37]} 37.
d5 {[%clk 0:00:32.7]} 37... Bxd5 {[%clk 0:00:29.4]} 38. f5 {[%clk 0:00:32.5]}
38... b5 {[%clk 0:00:28]} 39. f6 {[%clk 0:00:31.9]} 39... b4 {[%clk 0:00:15.9]}
40. f7 {[%clk 0:00:32.1]} 40... Ke7 {[%clk 0:00:15.2]} 41. Bg5+ {[%clk
0:00:31.3]} 1-0

[Event "Early-Titled-Tuesday-Blitz-May-28-2024"]
[Site "Chess.com"]
[Date "2024.05.28"]
[Round "5"]
[White "DanielNaroditsky"]
[Black "Alexander_Donchenko"]
[Result "1/2-1/2"]
[WhiteElo "3073"]
[BlackElo "2915"]
[TimeControl "180+1"]
[EndTime "8:56:26 PDT"]
[Termination "Game drawn by repetition"]

1. e4 {[%clk 0:02:51.2]} 1... c6 {[%clk 0:02:59.8]} 2. d4 {[%clk 0:02:51]} 2...
d5 {[%clk 0:03:00.7]} 3. e5 {[%clk 0:02:50.6]} 3... Bf5 {[%clk 0:03:01]} 4. h4
{[%clk 0:02:50.9]} 4... h5 {[%clk 0:03:01.4]} 5. Bd3 {[%clk 0:02:50.7]} 5...
Bxd3 {[%clk 0:03:01.8]} 6. Qxd3 {[%clk 0:02:51.6]} 6... Qa5+ {[%clk 0:03:02.1]}
7. b4 {[%clk 0:02:51.3]} 7... Qa6 {[%clk 0:03:01.8]} 8. e6 {[%clk 0:02:51.6]}
8... Qxd3 {[%clk 0:02:57.7]} 9. cxd3 {[%clk 0:02:47.7]} 9... Na6 {[%clk
0:02:47.8]} 10. a3 {[%clk 0:02:36.7]} 10... Nc7 {[%clk 0:02:36.6]} 11. exf7+
{[%clk 0:02:36.7]} 11... Kxf7 {[%clk 0:02:37.5]} 12. Nf3 {[%clk 0:02:37.1]}
12... Nh6 {[%clk 0:02:23.9]} 13. Be3 {[%clk 0:02:24.8]} 13... Nf5 {[%clk
0:02:20]} 14. Nbd2 {[%clk 0:02:23.2]} 14... g6 {[%clk 0:02:02.8]} 15. Nb3 {[%clk
0:02:23.1]} 15... Bg7 {[%clk 0:01:57.1]} 16. Kd2 {[%clk 0:02:19.4]} 16... Rhe8
{[%clk 0:01:51.5]} 17. Rhe1 {[%clk 0:02:18.7]} 17... Bf6 {[%clk 0:01:50.4]} 18.
g3 {[%clk 0:02:18.7]} 18... Ne6 {[%clk 0:01:38]} 19. Rac1 {[%clk 0:02:15.4]}
19... Rec8 {[%clk 0:01:33.2]} 20. Bg5 {[%clk 0:02:06.5]} 20... b6 {[%clk
0:01:21]} 21. a4 {[%clk 0:01:39.9]} 21... Rc7 {[%clk 0:01:18.1]} 22. Be3 {[%clk
0:01:28.9]} 22... Rac8 {[%clk 0:01:04.9]} 23. Rc2 {[%clk 0:01:28.2]} 23... Ke8
{[%clk 0:00:57.1]} 24. Rec1 {[%clk 0:01:25.1]} 24... Kd7 {[%clk 0:00:57.2]} 25.
a5 {[%clk 0:01:23.7]} 25... Rb8 {[%clk 0:00:55.5]} 26. axb6 {[%clk 0:01:19]}
26... Rxb6 {[%clk 0:00:52.8]} 27. Bf4 {[%clk 0:01:03.8]} 27... Rc8 {[%clk
0:00:40.6]} 28. Nc5+ {[%clk 0:00:54.5]} 28... Nxc5 {[%clk 0:00:40.1]} 29. bxc5
{[%clk 0:00:52]} 29... Rb7 {[%clk 0:00:33.8]} 30. Kc3 {[%clk 0:00:42.7]} 30...
a5 {[%clk 0:00:33]} 31. Ne5+ {[%clk 0:00:36.6]} 31... Ke6 {[%clk 0:00:24.5]} 32.
Re2 {[%clk 0:00:33.2]} 32... Bxe5 {[%clk 0:00:14.3]} 33. Bxe5 {[%clk 0:00:34.1]}
33... Kf7 {[%clk 0:00:14.5]} 34. Ra2 {[%clk 0:00:34.7]} 34... Ra8 {[%clk
0:00:14.4]} 35. Rca1 {[%clk 0:00:34.8]} 35... Rb5 {[%clk 0:00:14.5]} 36. Bc7
{[%clk 0:00:28.3]} 36... Nh6 {[%clk 0:00:13.5]} 37. Bf4 {[%clk 0:00:25.6]} 37...
Nf5 {[%clk 0:00:13.6]} 38. Be5 {[%clk 0:00:24.2]} 38... Ra7 {[%clk 0:00:13.8]}
39. f3 {[%clk 0:00:23.5]} 39... Nh6 {[%clk 0:00:12.7]} 40. Bf4 {[%clk
0:00:20.7]} 40... Nf5 {[%clk 0:00:13.3]} 41. Be5 {[%clk 0:00:19.6]} 41... Nh6
{[%clk 0:00:13.5]} 42. Bf4 {[%clk 0:00:13.2]} 42... Nf5 {[%clk 0:00:13.9]} 43.
Be5 {[%clk 0:00:13.5]} 1/2-1/2

[Event "Early-Titled-Tuesday-Blitz-May-28-2024"]
[Site "Chess.com"]
[Date "2024.05.28"]
[Round "5"]
[White "2Coaches1Profile"]
[Black "jumpingknight20"]
[Result "0-1"]
[WhiteElo "2588"]
[BlackElo "2783"]
[TimeControl "180+1"]
[EndTime "8:56:28 PDT"]
[Termination "jumpingknight20 won on time"]

1. d4 {[%clk 0:03:00.4]} 1... g6 {[%clk 0:02:53.6]} 2. e4 {[%clk 0:02:58.1]}
2... Bg7 {[%clk 0:02:53.8]} 3. Nf3 {[%clk 0:02:58.6]} 3... d6 {[%clk 0:02:52.6]}
4. Bc4 {[%clk 0:02:58.5]} 4... Nf6 {[%clk 0:02:52.4]} 5. Qe2 {[%clk 0:02:57.9]}
5... O-O {[%clk 0:02:52.4]} 6. h3 {[%clk 0:02:54.3]} 6... Nc6 {[%clk 0:02:52.1]}
7. O-O {[%clk 0:02:47.1]} 7... e5 {[%clk 0:02:52.2]} 8. dxe5 {[%clk 0:02:43]}
8... Nxe5 {[%clk 0:02:43.1]} 9. Nxe5 {[%clk 0:02:43]} 9... dxe5 {[%clk 0:02:44]}
10. Rd1 {[%clk 0:02:42.9]} 10... Qe7 {[%clk 0:02:41.8]} 11. b3 {[%clk
0:02:42.3]} 11... Rd8 {[%clk 0:02:32.4]} 12. Rxd8+ {[%clk 0:02:37.5]} 12... Qxd8
{[%clk 0:02:33.3]} 13. Nc3 {[%clk 0:02:35]} 13... c6 {[%clk 0:02:12.8]} 14. a4
{[%clk 0:02:33.4]} 14... Qe8 {[%clk 0:01:47.3]} 15. Be3 {[%clk 0:02:21.3]} 15...
Be6 {[%clk 0:01:42.7]} 16. Rd1 {[%clk 0:02:15.4]} 16... Nh5 {[%clk 0:01:42]} 17.
a5 {[%clk 0:02:08]} 17... Nf4 {[%clk 0:01:38.8]} 18. Qf1 {[%clk 0:01:38.2]}
18... Qe7 {[%clk 0:01:31.5]} 19. Na4 {[%clk 0:01:22.8]} 19... Bxc4 {[%clk
0:01:23.5]} 20. Qxc4 {[%clk 0:01:23.2]} 20... Qg5 {[%clk 0:01:23.8]} 21. Bxf4
{[%clk 0:01:18.2]} 21... exf4 {[%clk 0:01:24.7]} 22. a6 {[%clk 0:01:15.1]} 22...
f3 {[%clk 0:01:05.6]} 23. g3 {[%clk 0:01:14.9]} 23... b5 {[%clk 0:00:38]} 24.
Qxc6 {[%clk 0:01:10.6]} 24... Rf8 {[%clk 0:00:35.9]} 25. Nc5 {[%clk 0:00:57.3]}
25... Be5 {[%clk 0:00:35.6]} 26. Nd7 {[%clk 0:00:38.5]} 26... Bxg3 {[%clk
0:00:33.4]} 27. Kf1 {[%clk 0:00:18.4]} 27... Bf4 {[%clk 0:00:26.5]} 28. Nf6+
{[%clk 0:00:13.1]} 28... Kh8 {[%clk 0:00:26.3]} 29. Ng4 {[%clk 0:00:14]} 29...
f5 {[%clk 0:00:15]} 30. exf5 {[%clk 0:00:10]} 30... gxf5 {[%clk 0:00:15.9]} 31.
Qc3+ {[%clk 0:00:02.4]} 31... Kg8 {[%clk 0:00:15.5]} 32. Rd7 {[%clk 0:00:01.7]}
32... fxg4 {[%clk 0:00:14.7]} 33. hxg4 {[%clk 0:00:01.8]} 33... Qxg4 {[%clk
0:00:15.6]} 0-1